{"text_format":"1","workbook":"xlsx","n_sheets":2,"sheets":["pagos","datos"],"not_rendered":{"charts":0,"images":0,"macros":1,"external_links":0,"defined_names":0,"comments":0,"pivot_tables":0},"unopened":[],"bounds":{"document_bytes":16777216,"sheet_cells":100000,"rows_first":2000,"rows_last":500,"rows_between":2000,"halvings":0,"cell_chars":16384,"cell_head_chars":4096},"cells_cut":0,"cells_raw":0,"read":"whole","date_system":"1900"}

{"sheet":"pagos","index":0,"n_rows":195,"n_cols":7,"rows_kept":195,"cut":false,"hidden":false,"merged":[]}
[null,"رقم","Padre","رقم الهاتف","الأبناء","تاريخ التسجيل","تاريخ النهاية"]
[null,1,"القاضي عبدالعزيز",101111111,{"$f":"VLookUps(Tabla2[[#This Row],[Padre]],datos[#All],\" - \",TRUE)","v":"محمد - نسرين - عبدالحق"},"2021-09-01"]
[null,null,null,null,{"$f":"VLookUps(Tabla2[[#This Row],[Padre]],datos[#All],\" - \",TRUE)","v":""}]
[null,null,null,null,{"$f":"VLookUps(Tabla2[[#This Row],[Padre]],datos[#All],\" - \",TRUE)","v":""}]
[null,null,null,null,{"$f":"VLookUps(Tabla2[[#This Row],[Padre]],datos[#All],\" - \",TRUE)","v":""}]
[null,null,null,null,{"$f":"VLookUps(Tabla2[[#This Row],[Padre]],datos[#All],\" - \",TRUE)","v":""}]
[null,null,null,null,{"$f":"VLookUps(Tabla2[[#This Row],[Padre]],datos[#All],\" - \",TRUE)","v":""}]
[null,null,null,null,{"$f":"VLookUps(Tabla2[[#This Row],[Padre]],datos[#All],\" - \",TRUE)","v":""}]
[null,null,null,null,{"$f":"VLookUps(Tabla2[[#This Row],[Padre]],datos[#All],\" - \",TRUE)","v":""}]
[null,null,null,null,{"$f":"VLookUps(Tabla2[[#This Row],[Padre]],datos[#All],\" - \",TRUE)","v":""}]
[null,null,null,null,{"$f":"VLookUps(Tabla2[[#This Row],[Padre]],datos[#All],\" - \",TRUE)","v":""}]
[null,null,null,null,{"$f":"VLookUps(Tabla2[[#This Row],[Padre]],datos[#All],\" - \",TRUE)","v":""}]
[null,null,null,null,{"$f":"VLookUps(Tabla2[[#This Row],[Padre]],datos[#All],\" - \",TRUE)","v":""}]
[null,null,null,null,{"$f":"VLookUps(Tabla2[[#This Row],[Padre]],datos[#All],\" - \",TRUE)","v":""}]
[null,null,null,null,{"$f":"VLookUps(Tabla2[[#This Row],[Padre]],datos[#All],\" - \",TRUE)","v":""}]
[null,null,null,null,{"$f":"VLookUps(Tabla2[[#This Row],[Padre]],datos[#All],\" - \",TRUE)","v":""}]
[null,null,null,null,{"$f":"VLookUps(Tabla2[[#This Row],[Padre]],datos[#All],\" - \",TRUE)","v":""}]
[null,null,null,null,{"$f":"VLookUps(Tabla2[[#This Row],[Padre]],datos[#All],\" - \",TRUE)","v":""}]
[null,null,null,null,{"$f":"VLookUps(Tabla2[[#This Row],[Padre]],datos[#All],\" - \",TRUE)","v":""}]
[null,null,null,null,{"$f":"VLookUps(Tabla2[[#This Row],[Padre]],datos[#All],\" - \",TRUE)","v":""}]
[null,null,null,null,{"$f":"VLookUps(Tabla2[[#This Row],[Padre]],datos[#All],\" - \",TRUE)","v":""}]
[null,null,null,null,{"$f":"VLookUps(Tabla2[[#This Row],[Padre]],datos[#All],\" - \",TRUE)","v":""}]
[null,null,null,null,{"$f":"VLookUps(Tabla2[[#This Row],[Padre]],datos[#All],\" - \",TRUE)","v":""}]
[null,null,null,null,{"$f":"VLookUps(Tabla2[[#This Row],[Padre]],datos[#All],\" - \",TRUE)","v":""}]
[null,null,null,null,{"$f":"VLookUps(Tabla2[[#This Row],[Padre]],datos[#All],\" - \",TRUE)","v":""}]
[null,null,null,null,{"$f":"VLookUps(Tabla2[[#This Row],[Padre]],datos[#All],\" - \",TRUE)","v":""}]
[null,null,null,null,{"$f":"VLookUps(Tabla2[[#This Row],[Padre]],datos[#All],\" - \",TRUE)","v":""}]
[null,null,null,null,{"$f":"VLookUps(Tabla2[[#This Row],[Padre]],datos[#All],\" - \",TRUE)","v":""}]
[null,null,null,null,{"$f":"VLookUps(Tabla2[[#This Row],[Padre]],datos[#All],\" - \",TRUE)","v":""}]
[null,null,null,null,{"$f":"VLookUps(Tabla2[[#This Row],[Padre]],datos[#All],\" - \",TRUE)","v":""}]
[null,null,null,null,{"$f":"VLookUps(Tabla2[[#This Row],[Padre]],datos[#All],\" - \",TRUE)","v":""}]
[null,null,null,null,{"$f":"VLookUps(Tabla2[[#This Row],[Padre]],datos[#All],\" - \",TRUE)","v":""}]
[null,null,null,null,{"$f":"VLookUps(Tabla2[[#This Row],[Padre]],datos[#All],\" - \",TRUE)","v":""}]
[null,null,null,null,{"$f":"VLookUps(Tabla2[[#This Row],[Padre]],datos[#All],\" - \",TRUE)","v":""}]
[null,null,null,null,{"$f":"VLookUps(Tabla2[[#This Row],[Padre]],datos[#All],\" - \",TRUE)","v":""}]
[null,null,null,null,{"$f":"VLookUps(Tabla2[[#This Row],[Padre]],datos[#All],\" - \",TRUE)","v":""}]
[null,null,null,null,{"$f":"VLookUps(Tabla2[[#This Row],[Padre]],datos[#All],\" - \",TRUE)","v":""}]
[null,null,null,null,{"$f":"VLookUps(Tabla2[[#This Row],[Padre]],datos[#All],\" - \",TRUE)","v":""}]
[null,null,null,null,{"$f":"VLookUps(Tabla2[[#This Row],[Padre]],datos[#All],\" - \",TRUE)","v":""}]
[null,null,null,null,{"$f":"VLookUps(Tabla2[[#This Row],[Padre]],datos[#All],\" - \",TRUE)","v":""}]
[null,null,null,null,{"$f":"VLookUps(Tabla2[[#This Row],[Padre]],datos[#All],\" - \",TRUE)","v":""}]
[null,null,null,null,{"$f":"VLookUps(Tabla2[[#This Row],[Padre]],datos[#All],\" - \",TRUE)","v":""}]
[null,null,null,null,{"$f":"VLookUps(Tabla2[[#This Row],[Padre]],datos[#All],\" - \",TRUE)","v":""}]
[null,null,null,null,{"$f":"VLookUps(Tabla2[[#This Row],[Padre]],datos[#All],\" - \",TRUE)","v":""}]
[null,null,null,null,{"$f":"VLookUps(Tabla2[[#This Row],[Padre]],datos[#All],\" - \",TRUE)","v":""}]
[null,null,null,null,{"$f":"VLookUps(Tabla2[[#This Row],[Padre]],datos[#All],\" - \",TRUE)","v":""}]
[null,null,null,null,{"$f":"VLookUps(Tabla2[[#This Row],[Padre]],datos[#All],\" - \",TRUE)","v":""}]
[null,null,null,null,{"$f":"VLookUps(Tabla2[[#This Row],[Padre]],datos[#All],\" - \",TRUE)","v":""}]
[null,null,null,null,{"$f":"VLookUps(Tabla2[[#This Row],[Padre]],datos[#All],\" - \",TRUE)","v":""}]
[null,null,null,null,{"$f":"VLookUps(Tabla2[[#This Row],[Padre]],datos[#All],\" - \",TRUE)","v":""}]
[null,null,null,null,{"$f":"VLookUps(Tabla2[[#This Row],[Padre]],datos[#All],\" - \",TRUE)","v":""}]
[null,null,null,null,{"$f":"VLookUps(Tabla2[[#This Row],[Padre]],datos[#All],\" - \",TRUE)","v":""}]
[null,null,null,null,{"$f":"VLookUps(Tabla2[[#This Row],[Padre]],datos[#All],\" - \",TRUE)","v":""}]
[null,null,null,null,{"$f":"VLookUps(Tabla2[[#This Row],[Padre]],datos[#All],\" - \",TRUE)","v":""}]
[null,null,null,null,{"$f":"VLookUps(Tabla2[[#This Row],[Padre]],datos[#All],\" - \",TRUE)","v":""}]
[null,null,null,null,{"$f":"VLookUps(Tabla2[[#This Row],[Padre]],datos[#All],\" - \",TRUE)","v":""}]
[null,null,null,null,{"$f":"VLookUps(Tabla2[[#This Row],[Padre]],datos[#All],\" - \",TRUE)","v":""}]
[null,null,null,null,{"$f":"VLookUps(Tabla2[[#This Row],[Padre]],datos[#All],\" - \",TRUE)","v":""}]
[null,null,null,null,{"$f":"VLookUps(Tabla2[[#This Row],[Padre]],datos[#All],\" - \",TRUE)","v":""}]
[null,null,null,null,{"$f":"VLookUps(Tabla2[[#This Row],[Padre]],datos[#All],\" - \",TRUE)","v":""}]
[null,null,null,null,{"$f":"VLookUps(Tabla2[[#This Row],[Padre]],datos[#All],\" - \",TRUE)","v":""}]
[null,null,null,null,{"$f":"VLookUps(Tabla2[[#This Row],[Padre]],datos[#All],\" - \",TRUE)","v":""}]
[null,null,null,null,{"$f":"VLookUps(Tabla2[[#This Row],[Padre]],datos[#All],\" - \",TRUE)","v":""}]
[null,null,null,null,{"$f":"VLookUps(Tabla2[[#This Row],[Padre]],datos[#All],\" - \",TRUE)","v":""}]
[null,null,null,null,{"$f":"VLookUps(Tabla2[[#This Row],[Padre]],datos[#All],\" - \",TRUE)","v":""}]
[null,null,null,null,{"$f":"VLookUps(Tabla2[[#This Row],[Padre]],datos[#All],\" - \",TRUE)","v":""}]
[null,null,null,null,{"$f":"VLookUps(Tabla2[[#This Row],[Padre]],datos[#All],\" - \",TRUE)","v":""}]
[null,null,null,null,{"$f":"VLookUps(Tabla2[[#This Row],[Padre]],datos[#All],\" - \",TRUE)","v":""}]
[null,null,null,null,{"$f":"VLookUps(Tabla2[[#This Row],[Padre]],datos[#All],\" - \",TRUE)","v":""}]
[null,null,null,null,{"$f":"VLookUps(Tabla2[[#This Row],[Padre]],datos[#All],\" - \",TRUE)","v":""}]
[null,null,null,null,{"$f":"VLookUps(Tabla2[[#This Row],[Padre]],datos[#All],\" - \",TRUE)","v":""}]
[null,null,null,null,{"$f":"VLookUps(Tabla2[[#This Row],[Padre]],datos[#All],\" - \",TRUE)","v":""}]
[null,null,null,null,{"$f":"VLookUps(Tabla2[[#This Row],[Padre]],datos[#All],\" - \",TRUE)","v":""}]
[null,null,null,null,{"$f":"VLookUps(Tabla2[[#This Row],[Padre]],datos[#All],\" - \",TRUE)","v":""}]
[null,null,null,null,{"$f":"VLookUps(Tabla2[[#This Row],[Padre]],datos[#All],\" - \",TRUE)","v":""}]
[null,null,null,null,{"$f":"VLookUps(Tabla2[[#This Row],[Padre]],datos[#All],\" - \",TRUE)","v":""}]
[null,null,null,null,{"$f":"VLookUps(Tabla2[[#This Row],[Padre]],datos[#All],\" - \",TRUE)","v":""}]
[null,null,null,null,{"$f":"VLookUps(Tabla2[[#This Row],[Padre]],datos[#All],\" - \",TRUE)","v":""}]
[null,null,null,null,{"$f":"VLookUps(Tabla2[[#This Row],[Padre]],datos[#All],\" - \",TRUE)","v":""}]
[null,null,null,null,{"$f":"VLookUps(Tabla2[[#This Row],[Padre]],datos[#All],\" - \",TRUE)","v":""}]
[null,null,null,null,{"$f":"VLookUps(Tabla2[[#This Row],[Padre]],datos[#All],\" - \",TRUE)","v":""}]
[null,null,null,null,{"$f":"VLookUps(Tabla2[[#This Row],[Padre]],datos[#All],\" - \",TRUE)","v":""}]
[null,null,null,null,{"$f":"VLookUps(Tabla2[[#This Row],[Padre]],datos[#All],\" - \",TRUE)","v":""}]
[null,null,null,null,{"$f":"VLookUps(Tabla2[[#This Row],[Padre]],datos[#All],\" - \",TRUE)","v":""}]
[null,null,null,null,{"$f":"VLookUps(Tabla2[[#This Row],[Padre]],datos[#All],\" - \",TRUE)","v":""}]
[null,null,null,null,{"$f":"VLookUps(Tabla2[[#This Row],[Padre]],datos[#All],\" - \",TRUE)","v":""}]
[null,null,null,null,{"$f":"VLookUps(Tabla2[[#This Row],[Padre]],datos[#All],\" - \",TRUE)","v":""}]
[null,null,null,null,{"$f":"VLookUps(Tabla2[[#This Row],[Padre]],datos[#All],\" - \",TRUE)","v":""}]
[null,null,null,null,{"$f":"VLookUps(Tabla2[[#This Row],[Padre]],datos[#All],\" - \",TRUE)","v":""}]
[null,null,null,null,{"$f":"VLookUps(Tabla2[[#This Row],[Padre]],datos[#All],\" - \",TRUE)","v":""}]
[null,null,null,null,{"$f":"VLookUps(Tabla2[[#This Row],[Padre]],datos[#All],\" - \",TRUE)","v":""}]
[null,null,null,null,{"$f":"VLookUps(Tabla2[[#This Row],[Padre]],datos[#All],\" - \",TRUE)","v":""}]
[null,null,null,null,{"$f":"VLookUps(Tabla2[[#This Row],[Padre]],datos[#All],\" - \",TRUE)","v":""}]
[null,null,null,null,{"$f":"VLookUps(Tabla2[[#This Row],[Padre]],datos[#All],\" - \",TRUE)","v":""}]
[null,null,null,null,{"$f":"VLookUps(Tabla2[[#This Row],[Padre]],datos[#All],\" - \",TRUE)","v":""}]
[null,null,null,null,{"$f":"VLookUps(Tabla2[[#This Row],[Padre]],datos[#All],\" - \",TRUE)","v":""}]
[null,null,null,null,{"$f":"VLookUps(Tabla2[[#This Row],[Padre]],datos[#All],\" - \",TRUE)","v":""}]
[null,null,null,null,{"$f":"VLookUps(Tabla2[[#This Row],[Padre]],datos[#All],\" - \",TRUE)","v":""}]
[null,null,null,null,{"$f":"VLookUps(Tabla2[[#This Row],[Padre]],datos[#All],\" - \",TRUE)","v":""}]
[null,null,null,null,{"$f":"VLookUps(Tabla2[[#This Row],[Padre]],datos[#All],\" - \",TRUE)","v":""}]
[null,null,null,null,{"$f":"VLookUps(Tabla2[[#This Row],[Padre]],datos[#All],\" - \",TRUE)","v":""}]
[null,null,null,null,{"$f":"VLookUps(Tabla2[[#This Row],[Padre]],datos[#All],\" - \",TRUE)","v":""}]
[null,null,null,null,{"$f":"VLookUps(Tabla2[[#This Row],[Padre]],datos[#All],\" - \",TRUE)","v":""}]
[null,null,null,null,{"$f":"VLookUps(Tabla2[[#This Row],[Padre]],datos[#All],\" - \",TRUE)","v":""}]
[null,null,null,null,{"$f":"VLookUps(Tabla2[[#This Row],[Padre]],datos[#All],\" - \",TRUE)","v":""}]
[null,null,null,null,{"$f":"VLookUps(Tabla2[[#This Row],[Padre]],datos[#All],\" - \",TRUE)","v":""}]
[null,null,null,null,{"$f":"VLookUps(Tabla2[[#This Row],[Padre]],datos[#All],\" - \",TRUE)","v":""}]
[null,null,null,null,{"$f":"VLookUps(Tabla2[[#This Row],[Padre]],datos[#All],\" - \",TRUE)","v":""}]
[null,null,null,null,{"$f":"VLookUps(Tabla2[[#This Row],[Padre]],datos[#All],\" - \",TRUE)","v":""}]
[null,null,null,null,{"$f":"VLookUps(Tabla2[[#This Row],[Padre]],datos[#All],\" - \",TRUE)","v":""}]
[null,null,null,null,{"$f":"VLookUps(Tabla2[[#This Row],[Padre]],datos[#All],\" - \",TRUE)","v":""}]
[null,null,null,null,{"$f":"VLookUps(Tabla2[[#This Row],[Padre]],datos[#All],\" - \",TRUE)","v":""}]
[null,null,null,null,{"$f":"VLookUps(Tabla2[[#This Row],[Padre]],datos[#All],\" - \",TRUE)","v":""}]
[null,null,null,null,{"$f":"VLookUps(Tabla2[[#This Row],[Padre]],datos[#All],\" - \",TRUE)","v":""}]
[null,null,null,null,{"$f":"VLookUps(Tabla2[[#This Row],[Padre]],datos[#All],\" - \",TRUE)","v":""}]
[null,null,null,null,{"$f":"VLookUps(Tabla2[[#This Row],[Padre]],datos[#All],\" - \",TRUE)","v":""}]
[null,null,null,null,{"$f":"VLookUps(Tabla2[[#This Row],[Padre]],datos[#All],\" - \",TRUE)","v":""}]
[null,null,null,null,{"$f":"VLookUps(Tabla2[[#This Row],[Padre]],datos[#All],\" - \",TRUE)","v":""}]
[null,null,null,null,{"$f":"VLookUps(Tabla2[[#This Row],[Padre]],datos[#All],\" - \",TRUE)","v":""}]
[null,null,null,null,{"$f":"VLookUps(Tabla2[[#This Row],[Padre]],datos[#All],\" - \",TRUE)","v":""}]
[null,null,null,null,{"$f":"VLookUps(Tabla2[[#This Row],[Padre]],datos[#All],\" - \",TRUE)","v":""}]
[null,null,null,null,{"$f":"VLookUps(Tabla2[[#This Row],[Padre]],datos[#All],\" - \",TRUE)","v":""}]
[null,null,null,null,{"$f":"VLookUps(Tabla2[[#This Row],[Padre]],datos[#All],\" - \",TRUE)","v":""}]
[null,null,null,null,{"$f":"VLookUps(Tabla2[[#This Row],[Padre]],datos[#All],\" - \",TRUE)","v":""}]
[null,null,null,null,{"$f":"VLookUps(Tabla2[[#This Row],[Padre]],datos[#All],\" - \",TRUE)","v":""}]
[null,null,null,null,{"$f":"VLookUps(Tabla2[[#This Row],[Padre]],datos[#All],\" - \",TRUE)","v":""}]
[null,null,null,null,{"$f":"VLookUps(Tabla2[[#This Row],[Padre]],datos[#All],\" - \",TRUE)","v":""}]
[null,null,null,null,{"$f":"VLookUps(Tabla2[[#This Row],[Padre]],datos[#All],\" - \",TRUE)","v":""}]
[null,null,null,null,{"$f":"VLookUps(Tabla2[[#This Row],[Padre]],datos[#All],\" - \",TRUE)","v":""}]
[null,null,null,null,{"$f":"VLookUps(Tabla2[[#This Row],[Padre]],datos[#All],\" - \",TRUE)","v":""}]
[null,null,null,null,{"$f":"VLookUps(Tabla2[[#This Row],[Padre]],datos[#All],\" - \",TRUE)","v":""}]
[null,null,null,null,{"$f":"VLookUps(Tabla2[[#This Row],[Padre]],datos[#All],\" - \",TRUE)","v":""}]
[null,null,null,null,{"$f":"VLookUps(Tabla2[[#This Row],[Padre]],datos[#All],\" - \",TRUE)","v":""}]
[null,null,null,null,{"$f":"VLookUps(Tabla2[[#This Row],[Padre]],datos[#All],\" - \",TRUE)","v":""}]
[null,null,null,null,{"$f":"VLookUps(Tabla2[[#This Row],[Padre]],datos[#All],\" - \",TRUE)","v":""}]
[null,null,null,null,{"$f":"VLookUps(Tabla2[[#This Row],[Padre]],datos[#All],\" - \",TRUE)","v":""}]
[null,null,null,null,{"$f":"VLookUps(Tabla2[[#This Row],[Padre]],datos[#All],\" - \",TRUE)","v":""}]
[null,null,null,null,{"$f":"VLookUps(Tabla2[[#This Row],[Padre]],datos[#All],\" - \",TRUE)","v":""}]
[null,null,null,null,{"$f":"VLookUps(Tabla2[[#This Row],[Padre]],datos[#All],\" - \",TRUE)","v":""}]
[null,null,null,null,{"$f":"VLookUps(Tabla2[[#This Row],[Padre]],datos[#All],\" - \",TRUE)","v":""}]
[null,null,null,null,{"$f":"VLookUps(Tabla2[[#This Row],[Padre]],datos[#All],\" - \",TRUE)","v":""}]
[null,null,null,null,{"$f":"VLookUps(Tabla2[[#This Row],[Padre]],datos[#All],\" - \",TRUE)","v":""}]
[null,null,null,null,{"$f":"VLookUps(Tabla2[[#This Row],[Padre]],datos[#All],\" - \",TRUE)","v":""}]
[null,null,null,null,{"$f":"VLookUps(Tabla2[[#This Row],[Padre]],datos[#All],\" - \",TRUE)","v":""}]
[null,null,null,null,{"$f":"VLookUps(Tabla2[[#This Row],[Padre]],datos[#All],\" - \",TRUE)","v":""}]
[null,null,null,null,{"$f":"VLookUps(Tabla2[[#This Row],[Padre]],datos[#All],\" - \",TRUE)","v":""}]
[null,null,null,null,{"$f":"VLookUps(Tabla2[[#This Row],[Padre]],datos[#All],\" - \",TRUE)","v":""}]
[null,null,null,null,{"$f":"VLookUps(Tabla2[[#This Row],[Padre]],datos[#All],\" - \",TRUE)","v":""}]
[null,null,null,null,{"$f":"VLookUps(Tabla2[[#This Row],[Padre]],datos[#All],\" - \",TRUE)","v":""}]
[null,null,null,null,{"$f":"VLookUps(Tabla2[[#This Row],[Padre]],datos[#All],\" - \",TRUE)","v":""}]
[null,null,null,null,{"$f":"VLookUps(Tabla2[[#This Row],[Padre]],datos[#All],\" - \",TRUE)","v":""}]
[null,null,null,null,{"$f":"VLookUps(Tabla2[[#This Row],[Padre]],datos[#All],\" - \",TRUE)","v":""}]
[null,null,null,null,{"$f":"VLookUps(Tabla2[[#This Row],[Padre]],datos[#All],\" - \",TRUE)","v":""}]
[null,null,null,null,{"$f":"VLookUps(Tabla2[[#This Row],[Padre]],datos[#All],\" - \",TRUE)","v":""}]
[null,null,null,null,{"$f":"VLookUps(Tabla2[[#This Row],[Padre]],datos[#All],\" - \",TRUE)","v":""}]
[null,null,null,null,{"$f":"VLookUps(Tabla2[[#This Row],[Padre]],datos[#All],\" - \",TRUE)","v":""}]
[null,null,null,null,{"$f":"VLookUps(Tabla2[[#This Row],[Padre]],datos[#All],\" - \",TRUE)","v":""}]
[null,null,null,null,{"$f":"VLookUps(Tabla2[[#This Row],[Padre]],datos[#All],\" - \",TRUE)","v":""}]
[null,null,null,null,{"$f":"VLookUps(Tabla2[[#This Row],[Padre]],datos[#All],\" - \",TRUE)","v":""}]
[null,null,null,null,{"$f":"VLookUps(Tabla2[[#This Row],[Padre]],datos[#All],\" - \",TRUE)","v":""}]
[null,null,null,null,{"$f":"VLookUps(Tabla2[[#This Row],[Padre]],datos[#All],\" - \",TRUE)","v":""}]
[null,null,null,null,{"$f":"VLookUps(Tabla2[[#This Row],[Padre]],datos[#All],\" - \",TRUE)","v":""}]
[null,null,null,null,{"$f":"VLookUps(Tabla2[[#This Row],[Padre]],datos[#All],\" - \",TRUE)","v":""}]
[null,null,null,null,{"$f":"VLookUps(Tabla2[[#This Row],[Padre]],datos[#All],\" - \",TRUE)","v":""}]
[null,null,null,null,{"$f":"VLookUps(Tabla2[[#This Row],[Padre]],datos[#All],\" - \",TRUE)","v":""}]
[null,null,null,null,{"$f":"VLookUps(Tabla2[[#This Row],[Padre]],datos[#All],\" - \",TRUE)","v":""}]
[null,null,null,null,{"$f":"VLookUps(Tabla2[[#This Row],[Padre]],datos[#All],\" - \",TRUE)","v":""}]
[null,null,null,null,{"$f":"VLookUps(Tabla2[[#This Row],[Padre]],datos[#All],\" - \",TRUE)","v":""}]
[null,null,null,null,{"$f":"VLookUps(Tabla2[[#This Row],[Padre]],datos[#All],\" - \",TRUE)","v":""}]
[null,null,null,null,{"$f":"VLookUps(Tabla2[[#This Row],[Padre]],datos[#All],\" - \",TRUE)","v":""}]
[null,null,null,null,{"$f":"VLookUps(Tabla2[[#This Row],[Padre]],datos[#All],\" - \",TRUE)","v":""}]
[null,null,null,null,{"$f":"VLookUps(Tabla2[[#This Row],[Padre]],datos[#All],\" - \",TRUE)","v":""}]
[null,null,null,null,{"$f":"VLookUps(Tabla2[[#This Row],[Padre]],datos[#All],\" - \",TRUE)","v":""}]
[null,null,null,null,{"$f":"VLookUps(Tabla2[[#This Row],[Padre]],datos[#All],\" - \",TRUE)","v":""}]
[null,null,null,null,{"$f":"VLookUps(Tabla2[[#This Row],[Padre]],datos[#All],\" - \",TRUE)","v":""}]
[null,null,null,null,{"$f":"VLookUps(Tabla2[[#This Row],[Padre]],datos[#All],\" - \",TRUE)","v":""}]
[null,null,null,null,{"$f":"VLookUps(Tabla2[[#This Row],[Padre]],datos[#All],\" - \",TRUE)","v":""}]
[null,null,null,null,{"$f":"VLookUps(Tabla2[[#This Row],[Padre]],datos[#All],\" - \",TRUE)","v":""}]
[null,null,null,null,{"$f":"VLookUps(Tabla2[[#This Row],[Padre]],datos[#All],\" - \",TRUE)","v":""}]
[null,null,null,null,{"$f":"VLookUps(Tabla2[[#This Row],[Padre]],datos[#All],\" - \",TRUE)","v":""}]
[null,null,null,null,{"$f":"VLookUps(Tabla2[[#This Row],[Padre]],datos[#All],\" - \",TRUE)","v":""}]
[null,null,null,null,{"$f":"VLookUps(Tabla2[[#This Row],[Padre]],datos[#All],\" - \",TRUE)","v":""}]
[null,null,null,null,{"$f":"VLookUps(Tabla2[[#This Row],[Padre]],datos[#All],\" - \",TRUE)","v":""}]
[null,null,null,null,{"$f":"VLookUps(Tabla2[[#This Row],[Padre]],datos[#All],\" - \",TRUE)","v":""}]
[null,null,null,null,{"$f":"VLookUps(Tabla2[[#This Row],[Padre]],datos[#All],\" - \",TRUE)","v":""}]
[null,null,null,null,{"$f":"VLookUps(Tabla2[[#This Row],[Padre]],datos[#All],\" - \",TRUE)","v":""}]
[null,null,null,null,{"$f":"VLookUps(Tabla2[[#This Row],[Padre]],datos[#All],\" - \",TRUE)","v":""}]
[null,null,null,null,{"$f":"VLookUps(Tabla2[[#This Row],[Padre]],datos[#All],\" - \",TRUE)","v":""}]
[null,null,null,null,{"$f":"VLookUps(Tabla2[[#This Row],[Padre]],datos[#All],\" - \",TRUE)","v":""}]
[null,null,null,null,{"$f":"VLookUps(Tabla2[[#This Row],[Padre]],datos[#All],\" - \",TRUE)","v":""}]
[null,null,null,null,{"$f":"VLookUps(Tabla2[[#This Row],[Padre]],datos[#All],\" - \",TRUE)","v":""}]
[null,null,null,null,{"$f":"VLookUps(Tabla2[[#This Row],[Padre]],datos[#All],\" - \",TRUE)","v":""}]
[null,null,null,null,{"$f":"VLookUps(Tabla2[[#This Row],[Padre]],datos[#All],\" - \",TRUE)","v":""}]
[null,null,null,null,{"$f":"VLookUps(Tabla2[[#This Row],[Padre]],datos[#All],\" - \",TRUE)","v":""}]
[null,null,null,null,{"$f":"VLookUps(Tabla2[[#This Row],[Padre]],datos[#All],\" - \",TRUE)","v":""}]

{"sheet":"datos","index":1,"n_rows":35,"n_cols":12,"rows_kept":35,"cut":false,"hidden":false,"merged":[]}
["رقم الطالب","اسم الطالب (ة)","تاريخ الازدياد","تاريخ التسجيل","الجنس","المستوى","الفصل","التوقيت","المعلمة","Padre","رقم الهاتف","تاريخ الانتهاء"]
[1,"القاضي محمد","2011-01-08","2021-09-01","ولد","الثاني",1,"10--12","لطيفة","القاضي عبدالعزيز",101111111,"2021-09-01"]
[2,"القاضي نسرين","2005-11-26","2021-09-01","بنت","الثاني",1,"10--12","لطيفة","القاضي عبدالعزيز",2566666,"2021-09-01"]
[3,"القاضي عبدالحق","2015-07-23","2021-09-01","ولد","التحضيري",1,"10--12","امال","القاضي عبدالعزيز",888855555,"2021-09-01"]
[4,"يحياوي مروى","2013-02-16","2021-09-01","ولد","الثالث",1,"12--14","لطيفة","يحياوي عبدالرحيم",36555555,"2021-09-01"]
[5,"ختوتي سفيان","2007-01-26","2021-09-01","ولد","الثاني",1,"10--12","لطيفة","ختوتي طارق",556868655,"2021-09-01"]
[6,"ختوتي ادم","2009-09-08","2021-09-01","ولد","التحضيري",1,"10--12","امال","ختوتي طارق",886868686,"2021-09-01"]
[7,"ختوتي انس","2015-10-10","2021-09-01","ولد","الاول",1,"10--12","ليلى","ختوتي طارق",88686868,"2021-09-01"]
[8,"واعلي أشرف","2008-04-10","2021-09-01","ولد","التحضيري",1,"10--12","امال","واعلي عبدالسلام",666886899,"2021-09-01"]
[9,"واعلي يوسف","2015-06-24","2021-09-01","بنت","الاول",1,"10--12","ليلى","واعلي عبدالسلام",699999988,"2021-09-01"]
[10,"اقشار ليان","2014-04-01","2021-09-01","ولد","الاول",2,"12--14","ليلى","اقشار مصطفى",55557575757,"2021-09-01"]
[11,"بوكرمة ادم","2009-05-15","2021-09-01","بنت","الاول",2,"12--14","ليلى","مينة قندوسي",null,"2021-09-04"]
[12,"بوكرمة ندى","2011-04-18","2021-09-04","ولد","التحضيري",2,"12--14","امال","مينة قندوسي",null,"2021-09-04"]
[13,"بوكرمة أيوب","2016-01-21","2021-09-04","بنت","التحضيري",1,"10--12","امال","مينة قندوسي",null,"2021-09-11"]
[15,"ختوتي زينب","2016-10-01","2021-09-11","ولد","التحضيري",4,"14--16","امال","ختوتي رشيد",null,"2022-01-15"]
[16,"ختوتي نوميديا","2010-11-26","2021-10-16","ولد","الاول",2,"12--14","ليلى","ختوتي رشيد",null,"2021-09-11"]
[17,"تاقي اسماعيل","2013-05-28","2022-01-15","بنت","الاول",1,"10--12","ليلى","تاقي محمد",null,"2021-09-12"]
[18,"بوصوفي اسامة","2013-06-05","2021-09-11","بنت","الاول",1,"10--12","ليلى","بوصوفي كريم",null,"2021-09-12"]
[19,"موساتن جيهان","2012-12-25","2021-09-12","بنت","الثالث",1,"12--14","لطيفة","موساتن عبدالغاني",null,"2021-09-11"]
[20,"موساتن وجدان","2013-12-17","2021-09-12","ولد","الثاني",1,"10--12","لطيفة","موساتن عبدالغاني",null,"2021-09-11"]
[null,"موساتن الهام","2009-04-09","2021-09-11",null,null,null,null,null,"موساتن عبدالصمد"]
[null,"موساتن محمد","2010-10-22","2021-09-11",null,null,null,null,null,"موساتن عبدالصمد"]
[null,"موساتن يوسف","2014-12-12","2021-09-11",null,null,null,null,null,"موساتن عبدالصمد"]
[null,"بوشمال محمد","2013-05-29","2021-09-05",null,null,null,null,null,"بوشمال محمد"]
[null,"بوشمال حفصة","2011-08-04","2021-09-05",null,null,null,null,null,"بوشمال محمد"]
[null,"زال يونس","2012-08-12","2021-09-04",null,null,null,null,null,"زال احمد"]
[null,"زال يوسف","2014-12-04","2021-09-04",null,null,null,null,null,"زال احمد"]
[null,"وربا خولة ","2014-10-26","2021-09-04",null,null,null,null,null,"الحسين وربا"]
[null,"وربا نبيل","2011-08-01","2021-09-04",null,null,null,null,null,"الحسين وربا"]
[null,"الكوبي صفوة","2008-04-04","2021-09-05",null,null,null,null,null,"الكوبي محمد"]
[null,"الكوبي سراج","2010-05-04","2021-09-05",null,null,null,null,null,"الكوبي محمد"]
[null,"الكوبي حذيفة","2012-01-01","2021-09-05",null,null,null,null,null,"الكوبي محمد"]
[null,"الكوبي اسامة","2016-02-06","2021-09-05",null,null,null,null,null,"الكوبي محمد"]
[null,"اتيبان جانا","2015-09-08","2021-09-11",null,null,null,null,null,"الحراق ليلى"]
[null,"الصالحي نور","2016-11-09","2021-09-04",null,null,null,null,null,"الصالحي محمد"]